Cogmind - Beta 11 X7 @@@ ROGUE MODE // 2021.09.30 @ 05:17:16 Player: cptwinky Result: Destroyed by Combat Programmer with EMDS Performance ------------- Evolutions (7) 3500 Regions Visited (30) 6000 Robots Destroyed (361) 1805 Value Destroyed (17416) 17416 Prototype IDs (61) 1220 Alien Tech Used (12) 2400 Bonus (4722) 4722 TOTAL SCORE: 37063 Bonus ------- High Alert Combat Kills 1156 Follower Combat Kills 1191 Network Hubs Disabled 400 Met Data Miner 300 Met Zhirov 300 Met Warlord at Base 500 MAIN.C Attacked Warlord 500 Warlord Defense Kill 298 Met R17 at Cetus 500 Scanned by Researcher 500 Pursued by Intercept 500 Friendly Fire -1423 Cogmind --------- Core Integrity 0/1300 Matter 249/300 Energy 88/100 System Corruption 37% Temperature Cool (0) Movement Core (250) Ox4 Location -3/Section 7 Parts ------- > --- POWER (2) -------- (None) > --- PROPULSION (6) --- (None) > --- UTILITY (10) ----- (None) > --- WEAPON (3) ------- Hypercooled Linear Accelerator > --- INVENTORY (5) ---- Matter Drive EMDS Peak State ------------ > --- POWER ------------ Antimatter Reactor Particle Reactor > --- PROPULSION ------- Armored Heavy Treads Centrium Heavy Treads Centrium Heavy Treads > --- UTILITY ---------- Improved Cooling System Advanced Coolant Injector Huge Storage Unit Experimental Optical Array Centrium Medium Armor Plating Phase Armor Improved Force Field Hacking Suite Advanced Component Analysis Suite > --- WEAPON ----------- Heavy Mass Driver Heavy Gauss Cannon > --- INVENTORY -------- Improved Quantum Reactor Advanced Energy Well YI-UF0's Bottomless Matter Pit Advanced Signal Interpreter Particle Accelerator Makeshift Cloaking Device Experimental Weapon Shielding Advanced Thermal Shield Phase Redirector Dimensional Node Initializer Transdimensional Reconstructor Transdimensional Reconstructor Transdimensional Reconstructor Transdimensional Reconstructor High-powered Transdimensional Reconstructor Subatomic Replicator Matter Drive EMDS Heavy Neutron Cannon Hypercooled Linear Accelerator Hypercooled Linear Accelerator Dirty Datajack Power Maul [Rating: 186] Favorites ----------- Power Particle Reactor Engine Cooled Deuterium Engine Power Core Micro Fission Core Reactor Particle Reactor Propulsion Centrium Heavy Treads Treads Centrium Heavy Treads Leg Improved Titanium Leg Wheel Compact Wheel Hover Unit Combat Airjet Utility High-capacity Storage Unit Device Improved Cooling System Storage High-capacity Storage Unit Processor Experimental Optical Array Hackware Hacking Suite Protection Centrium Medium Armor Plating Artifact Phase Armor Weapon Hypervelocity Gauss Rifle Energy Gun Heavy Particle Gun Energy Cannon Heavy Neutron Cannon Ballistic Gun Hypervelocity Gauss Rifle Ballistic Cannon Heavy Mass Driver Launcher Missile Launcher Impact Weapon Power Maul Special Melee Weapon Improved Datajack Build | -11 -10 -10 -9 -9 -9 -8 -8 -7 -7 -7 -7 -6 -6 -6 -6 -6 -6 -5 -5 -5 -5 -4 -4 -4 -4 -4 -3 -3 -3 -3 ------- Run | Scr Mat Min Mat Min Exi Min Mat Fac Low Low Dat Pro Fac Ext Cet Arc Hub Fac Upp Upp War Pro Fac Upp Upp Zhi Pro Res Qua Sec Slots Evolved 14 | . . . 2 . . . 2 2 . . . . 2 . . . . 2 . . . . 2 . . . . 2 . . Power 1 | . . . . . . . . . . . . . . . . . . 1 . . . . . . . . . . . . Propulsion 4 | . . . 1 . . . . 1 . . . . 1 . . . . . . . . . 1 . . . . . . . Utility 8 | . . . 1 . . . 1 1 . . . . 1 . . . . 1 . . . . 1 . . . . 2 . . Weapon 1 | . . . . . . . 1 . . . . . . . . . . . . . . . . . . . . . . . Parts Attached 453 | 2 15 8 26 6 . 8 42 27 10 7 . 14 28 17 12 4 9 7 11 8 25 14 8 13 2 7 4 25 47 47 Power 31 | . . . 2 . . 1 4 2 . . . 3 1 . 1 1 1 . 1 . 1 . . 2 . . . 3 5 3 Engine 12 | . . . 2 . . 1 4 1 . . . 2 1 . 1 . . . . . . . . . . . . . . . Core 8 | . . . . . . . . 1 . . . 1 . . . 1 . . 1 . . . . 2 . . . 2 . . Reactor 11 | . . . . . . . . . . . . . . . . . 1 . . . 1 . . . . . . 1 5 3 Propulsion 80 | 2 2 2 10 2 . 1 14 5 . . . 1 8 8 2 . 1 1 . 1 4 1 3 . 1 1 . 3 5 2 Treads 58 | 2 2 2 10 1 . . 9 . . . . . . 7 2 . 1 1 . 1 4 1 3 . 1 1 . 3 5 2 Leg 18 | . . . . . . 1 2 5 . . . 1 8 1 . . . . . . . . . . . . . . . . Wheel 3 | . . . . 1 . . 2 . . . . . . . . . . . . . . . . . . . . . . . Hover 1 | . . . . . . . 1 . . . . . . . . . . . . . . . . . . . . . . . Flight . | . . . . . . . . . . . . . . . . . . . . . . . . . . . . . . . Utility 190 | . 4 3 6 2 . 1 10 9 6 3 . 6 11 7 3 1 6 3 5 4 6 7 4 8 1 3 1 15 32 23 Device 98 | . . . 1 . . 1 1 3 5 1 . 3 4 4 . . 5 3 5 3 2 3 2 5 1 2 . 11 23 10 Storage 19 | . 1 1 . . . . 2 1 . . . . 2 . . . . . . . . 2 . 2 . 1 . 2 2 3 Processor 15 | . . . 1 . . . 3 2 . . . . 1 . . . . . . 1 1 . . 1 . . . 1 . 4 Hackware 9 | . . . . . . . 1 . . . . . 3 . . 1 . . . . . . . . . . . 1 1 2 Protection 45 | . 3 2 4 2 . . 3 3 1 2 . 3 1 3 3 . 1 . . . 3 2 2 . . . 1 . 2 4 Artifact 4 | . . . . . . . . . . . . . . . . . . . . . . . . . . . . . 4 . Weapon 152 | . 9 3 8 2 . 5 14 11 4 4 . 4 8 2 6 2 1 3 5 3 14 6 1 3 . 3 3 4 5 19 Energy Gun 21 | . . . . . . . 6 7 2 2 . 1 3 . . . . . . . . . . . . . . . . . Energy Cannon 13 | . 2 . . . . . . . . . . . . . . . . 1 . . . 2 1 1 . . . . . 6 Ballistic Gun 62 | . 5 2 7 1 . 3 5 . . 2 . 2 3 1 5 2 1 2 3 2 10 3 . 1 . 1 1 . . . Ballistic Cannon 17 | . . . . . . . . . . . . . . . . . . . . . . . . 1 . 1 1 3 4 7 Launcher 28 | . 2 1 1 1 . 2 3 2 1 . . 1 1 . 1 . . . 1 1 3 1 . . . . 1 1 . 4 Special Weapon . | . . . . . . . . . . . . . . . . . . . . . . . . . . . . . . . Impact Weapon 9 | . . . . . . . . 2 1 . . . 1 . . . . . 1 . 1 . . . . 1 . . 1 1 Slashing Weapon . | . . . . . . . . . . . . . . . . . . . . . . . . . . . . . . . Piercing Weapon . | . . . . . . . . . . . . . . . . . . . . . . . . . . . . . . . Special Melee Weapon 2 | . . . . . . . . . . . . . . 1 . . . . . . . . . . . . . . . 1 Unidentified Prototypes 37 | . 1 1 . . . . 1 1 . . . . 2 . 3 . 3 2 . . 3 . 1 2 . 2 . 1 10 4 Corrupted Parts 3 | . . . . . . . . . . . . . . . . . . . . . . . . 1 . . . . . 2 System Corruption 5 | . . . . . . . . . . . . . . . . . . . . . . . . 1 . . . . . 4 Parts Lost 69 | . . . 2 4 . 4 10 . . 1 . 4 2 . . . . . . . 4 7 5 1 . . 1 1 5 18 Power 7 | . . . 1 . . 1 1 . . . . . . . . . . . . . . 1 . . . . . . . 3 Propulsion 15 | . . . 1 2 . 1 4 . . . . . . . . . . . . . 1 2 1 . . . . . . 3 Utility 32 | . . . . 2 . 1 2 . . 1 . 2 2 . . . . . . . 1 3 3 1 . . 1 1 5 7 Weapon 15 | . . . . . . 1 3 . . . . 2 . . . . . . . . 2 1 1 . . . . . . 5 Highest Loss Streak 12 | . . . 1 3 . 4 7 . . 1 . 3 2 . . . . . . . 4 3 3 1 . . 1 1 2 12 Average Slot Usage (%) 86 | . 99 100 98 99 100 96 90 97 99 100 100 99 98 100 88 86 85 70 71 75 74 78 80 77 82 73 84 81 76 76 Engine 3 | . 14 14 11 11 11 11 8 3 7 7 7 1 2 6 6 . . . . . . . . . . . . . . . Core 2 | . . . . . . . . 3 . . . 5 3 . . 5 5 . 1 5 3 . 8 10 10 10 10 5 . . Reactor 2 | . . . . . . . . . . . . . . . . . . 5 5 5 5 4 . . . . . 2 8 8 Treads 15 | . 28 28 33 31 22 15 16 6 . . . . . 7 22 20 20 17 17 17 17 22 19 15 19 21 21 16 14 13 Leg 6 | . . . . . . 6 2 21 30 30 30 30 33 25 . . . . . . . . . . . . . . . . Device 10 | . . . 6 . . 4 4 4 14 14 15 13 8 7 6 6 12 11 11 10 13 13 13 14 20 21 15 21 17 10 Storage 7 | . 14 14 11 11 11 11 9 7 7 7 7 7 6 6 6 6 6 5 5 5 5 5 10 9 5 5 5 4 6 4 Processor 5 | . . . 1 11 11 11 14 6 7 7 7 7 6 6 6 6 6 . . . . 5 5 9 10 10 10 9 5 9 Hackware 3 | . . . . . . . . 7 . . . . 8 6 6 6 6 5 5 5 2 . . . . . . . 4 11 Protection 7 | . 13 14 13 10 11 4 6 9 7 7 7 8 6 11 13 13 6 5 5 5 5 8 7 6 5 5 9 8 3 2 Energy Gun 4 | . . . . . . . 14 22 22 21 23 10 3 . . . . . . . . . . . . . . . . . Ballistic Gun 10 | . 25 28 22 20 22 20 11 . . 1 . 11 15 18 19 20 20 15 16 16 16 14 9 4 5 . 1 . . . Ballistic Cannon 2 | . . . . . . . . . . . . . . . . . . . . . . . . 3 5 . 8 8 8 4 Naked Turns 1 | . . . . . . . . . . . . . . . . . . . . . . . . . . . . . . 1 Heaviest Build 209 | 13 34 34 38 36 36 36 59 69 74 77 70 77 83 91 91 89 92 92 105 105 121 125 86 119 119 117 123 181 209 208 Greatest Support 250 | 40 40 40 60 60 16 16 63 74 74 74 74 74 108 150 180 180 188 188 188 188 188 161 214 187 210 210 210 222 220 250 Greatest Overweight (x) 26 | . . . . 2 2 2 8 1 . 1 . 1 . 1 . 26 . . . . . . . . . . . . 1 . Average Overweight (x) . | . . . . . 2 1 . . . . . . . . . 15 . . . . . . . . . . . . . . Largest Inventory Capacity 25 | 8 15 15 15 15 15 15 20 20 20 20 20 20 20 20 20 20 20 20 20 20 20 20 20 20 20 20 20 25 25 25 Average Capacity 19 | 8 10 15 15 15 15 15 15 20 20 20 20 20 20 20 20 20 20 20 20 20 20 20 20 20 20 20 20 24 25 24 Most Carried 25 | 6 11 15 15 15 15 15 19 20 20 20 19 20 20 20 20 20 20 20 20 20 20 20 18 20 20 20 20 25 25 25 Average Carried 19 | 6 8 14 14 13 14 14 14 19 19 19 19 18 18 19 19 20 19 18 19 19 19 19 16 18 20 19 19 23 24 24 Final Capacity 25 | 8 15 15 15 15 15 15 20 20 20 20 20 20 20 20 20 20 20 20 20 20 20 20 20 20 20 20 20 25 25 5 Final Carried 25 | 6 11 15 14 14 15 14 19 20 20 19 19 18 20 20 20 20 20 19 20 20 19 17 18 20 20 20 20 25 22 4 Class Distribution -------------------- 27% | Scavenger-Tank 18% | Scavenger-Skirmisher 16% | Scavenger-Mutant 12% | Mutant 10% | Skirmisher 4% | Tank Dominant Class ---------------- Mutant | -10/Materials Mutant | -10/Mines Scavenger-Mutant | -9/Materials Mutant | -9/Mines Mutant | -9/Exiles Mutant | -8/Mines Gunner | -8/Materials Tank | -7/Factory Skirmisher | -7/Lower Caves Skirmisher | -7/Lower Caves Skirmisher | -7/Data Miner Scavenger-Skirmisher | -6/Proximity Caves Scavenger-Skirmisher | -6/Factory Commander-Tank | -6/Extension Scavenger-Tank | -6/Cetus Scavenger-Tank | -6/Archives Scavenger-Skirmisher | -6/Hub_04(d) Scavenger-Skirmisher | -5/Factory Scavenger-Skirmisher | -5/Upper Caves Scavenger-Skirmisher | -5/Upper Caves Scavenger-Skirmisher | -5/Warlord Scavenger-Tank | -4/Proximity Caves Scavenger-Mutant | -4/Factory Scavenger-Tank | -4/Upper Caves Scavenger-Tank | -4/Upper Caves Scavenger-Mutant | -4/Zhirov Scavenger-Tank | -3/Proximity Caves Scavenger-Tank | -3/Research Scavenger-Mutant | -3/Quarantine Scavenger-Mutant | -3/Section 7 Resources | -11 -10 -10 -9 -9 -9 -8 -8 -7 -7 -7 -7 -6 -6 -6 -6 -6 -6 -5 -5 -5 -5 -4 -4 -4 -4 -4 -3 -3 -3 -3 ----------- Run | Scr Mat Min Mat Min Exi Min Mat Fac Low Low Dat Pro Fac Ext Cet Arc Hub Fac Upp Upp War Pro Fac Upp Upp Zhi Pro Res Qua Sec Matter Collected 19117 | 220 475 862 1219 402 . 247 1423 537 127 225 . 207 443 849 478 160 396 143 772 232 510 717 261 554 499 98 565 2230 2337 1929 Remotely . | . . . . . . . . . . . . . . . . . . . . . . . . . . . . . . . Salvage Created 14393 | . 468 598 1403 214 . 292 1393 961 56 274 . 58 326 937 743 389 628 120 532 221 166 804 322 138 88 98 227 973 656 1308 Parts 739 | . 36 28 98 4 . 17 79 47 6 16 . 2 18 36 39 23 23 12 33 17 17 41 20 1 6 4 6 25 37 48 Haulers Intercepted 13 | . 1 . 3 . . . 5 2 . . . . . . . . 1 . . . . . . . . . . . . 1 Recyclers Shooed 14 | . . 1 3 1 . . 1 2 . . . . . 2 . . . . . . . . . . . . . 3 1 . Parts Field Recycled . | . . . . . . . . . . . . . . . . . . . . . . . . . . . . . . . Retrieved Matter . | . . . . . . . . . . . . . . . . . . . . . . . . . . . . . . . Parts Self-Destructed 196 | . . . . . . . . . 2 22 . 13 . . . . . . 25 19 63 40 . 1 6 . 5 . . . Prevented 21 | . . . . . . . . . . . . . . . . . . . . 1 15 . . . 1 4 . . . . Kills | -11 -10 -10 -9 -9 -9 -8 -8 -7 -7 -7 -7 -6 -6 -6 -6 -6 -6 -5 -5 -5 -5 -4 -4 -4 -4 -4 -3 -3 -3 -3 ------- Run | Scr Mat Min Mat Min Exi Min Mat Fac Low Low Dat Pro Fac Ext Cet Arc Hub Fac Upp Upp War Pro Fac Upp Upp Zhi Pro Res Qua Sec Combat Hostiles Destroyed 306 | . 16 14 33 14 . 11 36 17 3 6 . 2 5 8 15 4 3 2 11 5 3 14 5 4 2 . 8 17 18 30 Melee 2 | . . . . . . . . . . . . . . . . . . . . . 1 . 1 . . . . . . . Guns 154 | . 8 11 31 5 . 3 23 9 1 6 . 1 4 8 10 4 3 2 7 2 2 9 3 2 . . . . . . Cannons 62 | . 3 . . . . . . . . . . . . . . . . . . . . . 1 2 2 . 5 14 18 17 AOE 84 | . 5 3 2 9 . 8 12 7 2 . . 1 1 . 5 . . . 4 3 . 5 . . . . 3 3 . 11 Classes Destroyed 21 | . 4 1 3 2 . 3 1 3 . . . . . . . . 1 . 1 . 1 . . . . . . 1 . . Worker 12 | . 2 . 1 . . 1 . 2 . . . . . 1 . . 1 . . . . . . . . . . 3 . 1 Builder 5 | . . . . . . 1 . 1 . . . . . . . . 1 . . . . . . . . . . 1 . 1 Tunneler 2 | . . . . . . 1 . . . . . . . . . . 1 . . . . . . . . . . . . . Hauler 13 | . 1 . 3 . . . 5 2 . . . . . . . . 1 . . . . . . . . . . . . 1 Recycler 18 | . . 2 2 1 . 1 . 1 . . . . . 3 . . 1 . . . . . . . . . . 4 2 1 Operator 7 | . . . 1 . . . 3 . . . . . . . . 1 . . . . . . . . . . . . . 2 Watcher 8 | . . . 1 . . . 1 2 . . . . . . 1 . 2 . . . . . . . . . . . . 1 Swarmer 76 | . 8 6 13 . . 5 12 . 3 3 . . . . 5 . . . 5 4 1 5 . . . . 3 3 . . Grunt 94 | . 8 8 11 . . 5 16 5 . . . 2 3 4 3 . 1 . 2 . . 4 1 . . . 2 3 2 14 Brawler 3 | . . . . . . 1 . 1 . . . . . . 1 . . . . . . . . . . . . . . . Duelist 3 | . . . . . . . . 2 . . . . 1 . . . . . . . . . . . . . . . . . Protector 2 | . . . . . . . . 1 . . . . . . . . . . . . 1 . . . . . . . . . Sentry 38 | . . . 9 . . . 6 2 . 1 . . 1 3 . 4 1 . 1 1 . 1 . 1 . . 1 3 . 3 Demolisher 2 | . . . . 2 . . . . . . . . . . . . . . . . . . . . . . . . . . Specialist 6 | . . . . . . . 2 . . . . . . . . . . . . . . . 4 . . . . . . . Hunter 11 | . . . . . . . . . . . . . . . . . . . 1 . . 3 . . . . 2 2 . 3 Programmer 29 | . . . . . . . . 6 . 2 . . . . . . . 2 1 . . . . 1 2 . . 4 5 6 Heavy 1 | . . . . . . . . . . . . . . . . . . . . . . . . . . . . 1 . . Behemoth 4 | . . . . . . . . . . . . . . . . . . . . . 1 1 . 1 . . . 1 . . Cetus Guard 6 | . . . . . . . . . . . . . . . 6 . . . . . . . . . . . . . . . Quarantine Guard 11 | . . . . . . . . . . . . . . . . . . . . . . . . . . . . . 11 . S7 Guard 2 | . . . . . . . . . . . . . . . . . . . . . . . . . . . . . . 2 Lightning 1 | . . . . . . . . . . . . . . . . . 1 . . . . . . . . . . . . . Tracker 2 | . . . . . . . . . . . . . . . . . . . . . . . . . . . . . . 2 Decomposer 2 | . . . . . . . . . 2 . . . . . . . . . . . . . . . . . . . . . Assembled 12 | . . . . 12 . . . . . . . . . . . . . . . . . . . . . . . . . . Butcher 1 | . . . . . . . . . . . . . . 1 . . . . . . . . . . . . . . . . Mutant 3 | . . . . . . . . . . . . . . . . . . . 1 1 . . . 1 . . . . . . Best Kill Streak 11 | . 5 5 5 11 . 7 10 5 2 5 . 2 2 3 8 5 3 2 6 4 1 5 2 1 2 . 3 7 3 7 Combat Bots Only 11 | . 3 5 5 11 . 6 10 5 2 5 . 2 2 2 8 4 2 2 6 4 1 5 2 1 2 . 3 4 3 5 Max Kills in Single Turn 3 | . 3 2 2 3 . 2 3 2 2 1 . 1 2 2 3 2 2 1 2 2 1 3 1 1 1 . 2 1 1 3 Gunslinging 1 | . . 1 1 . . . 1 . . . . . 1 . 1 . . . 1 . . . . . . . . . . . Exploded 3 | . 3 2 1 3 . 2 3 2 1 . . 1 1 . 3 . . . 2 2 . 3 . . . . 2 1 . 2 Melee 1 | . . . . . . . . . . . . . . . . . . . . . 1 . 1 . . . . . . . Uniques/NPCs Destroyed 1 | . . 1 . . . . . . . . . . . . . . . . . . . . . . . . . . . . YI-UF0 (-10/Mines) Combat | -11 -10 -10 -9 -9 -9 -8 -8 -7 -7 -7 -7 -6 -6 -6 -6 -6 -6 -5 -5 -5 -5 -4 -4 -4 -4 -4 -3 -3 -3 -3 -------- Run | Scr Mat Min Mat Min Exi Min Mat Fac Low Low Dat Pro Fac Ext Cet Arc Hub Fac Upp Upp War Pro Fac Upp Upp Zhi Pro Res Qua Sec Damage Taken 29007 | . 377 322 1243 471 . 336 1863 1232 30 367 . 656 539 625 803 292 640 36 318 147 1947 2919 1226 481 19 . 786 1177 2916 7239 Core 2833 | . 45 16 104 41 . 50 413 173 . 20 . 19 113 58 50 . 6 . 14 28 59 74 101 17 10 . 47 29 448 898 Absorbed by Shields 4291 | . . . 206 . . . . . . . . . . 137 . . . . . . 364 64 . 287 19 . 117 615 1631 851 Reduced by Siege Mode 1524 | . . . . . . . . . . . . . . . 46 13 6 3 27 . . 148 9 57 . . 26 54 445 690 Redirected to Core 370 | . . . . . . . . . . . . . . . . . . . . . . . . . . . . . 297 73 Core Remaining (%) 69 | 100 . 75 . . . 51 24 . . . . 69 . . . . 73 . . . . 82 . . . . 84 . . . Volleys Fired 965 | . 37 32 90 19 . 24 89 44 6 19 . 10 17 38 26 10 21 8 15 11 20 77 19 27 2 . 22 69 83 130 Largest 3 | . 2 2 2 2 . 2 3 3 3 3 . 3 3 3 3 3 3 3 3 3 3 3 3 2 2 . 2 2 2 3 Hottest 232 | . 80 46 46 46 . 46 165 179 165 165 . 143 135 99 101 101 101 101 101 101 101 110 178 200 125 . 147 151 136 232 Shots Fired 2074 | . 71 62 177 32 . 37 247 115 12 52 . 22 46 114 69 30 63 16 37 29 60 161 43 52 6 . 42 120 153 206 Gun 1411 | . 57 60 174 28 . 26 236 107 9 52 . 18 45 114 65 30 63 12 34 27 60 130 27 25 3 . 9 . . . Cannon 577 | . 11 . . . . . . . . . . . . . . . . 4 . . . 28 16 27 3 . 30 117 153 188 Launcher 86 | . 3 2 3 4 . 11 11 8 3 . . 4 1 . 4 . . . 3 2 . 3 . . . . 3 3 . 18 Special . | . . . . . . . . . . . . . . . . . . . . . . . . . . . . . . . Kinetic 1581 | . 57 60 174 28 . 26 155 . . 26 . 7 33 114 65 30 63 12 34 27 60 130 27 50 6 . 39 117 153 88 Thermal 395 | . 11 . . . . . 81 107 9 26 . 11 12 . . . . 4 . . . 28 16 2 . . . . . 88 Explosive 86 | . 3 2 3 4 . 11 11 8 3 . . 4 1 . 4 . . . 3 2 . 3 . . . . 3 3 . 18 Electromagnetic 12 | . . . . . . . . . . . . . . . . . . . . . . . . . . . . . . 12 Robot Hit Streak 60 | . 8 17 19 12 . 14 33 14 5 5 . 5 17 21 24 16 17 8 7 12 12 35 10 33 11 . 13 19 58 60 Robot Miss Streak 6 | . 3 2 5 3 . 3 3 4 3 4 . 1 2 6 3 1 3 1 2 2 2 2 2 1 . . 4 5 2 5 Penetration Max 2 | . . . . . . . . . . . . . 1 2 . . 1 . 1 . 2 1 1 . . . . . 1 1 Secondary Targets 20 | . . 4 3 2 . . 1 1 . . . . 2 . 3 . 1 . 1 . 2 . . . . . . . . . Max Gunslinging Chain 1 | . . 1 1 1 . . 1 1 . . . . 1 . 1 . 1 . 1 . 1 . . . . . . . . . Shots Hit Robots 1446 | . 46 52 136 22 . 21 173 68 5 26 . 15 32 102 54 24 37 10 21 21 45 97 30 47 3 1 28 82 119 129 Core Hits 747 | . 28 23 59 27 . 25 73 49 6 14 . 12 21 29 34 10 23 4 22 13 11 39 10 8 3 . 16 46 46 96 Critical Kills 54 | . . . 1 . . . . . . 3 . . 2 12 7 4 3 1 7 2 1 6 3 2 . . . . . . Critical Parts Destroyed 88 | . . 1 . . . . 1 . . 5 . 1 4 13 4 2 8 4 5 4 9 16 3 5 . . 3 . . . Critical Strikes 224 | . . 1 1 . . . 3 3 . 8 . 3 6 30 12 9 12 5 12 6 12 25 6 9 . . 5 20 21 15 Burn 5 | . . . . . . . 2 3 . . . . . . . . . . . . . . . . . . . . . . Destroy 160 | . . 1 1 . . . 1 . . 8 . 3 6 30 12 9 12 5 12 6 12 25 6 8 . . 3 . . . Blast 57 | . . . . . . . . . . . . . . . . . . . . . . . . 1 . . 2 20 21 13 Corrupt 2 | . . . . . . . . . . . . . . . . . . . . . . . . . . . . . . 2 Melee Attacks 61 | . . . . . . . . 3 7 . . . 2 22 . . . . 17 . 1 . . . . 1 . . 3 5 Impact 36 | . . . . . . . . 3 7 . . . 2 . . . . . 17 . 1 . . . . 1 . . 3 2 Slashing . | . . . . . . . . . . . . . . . . . . . . . . . . . . . . . . . Piercing 3 | . . . . . . . . . . . . . . . . . . . . . . . . . . . . . . 3 Sneak Attacks 23 | . . . . . . . . 1 . . . . . 22 . . . . . . . . . . . . . . . . Combat Hostiles . | . . . . . . . . . . . . . . . . . . . . . . . . . . . . . . . Follow-up Attacks . | . . . . . . . . . . . . . . . . . . . . . . . . . . . . . . . Damage Inflicted 49526 | . 1024 999 2580 790 . 1471 4329 2616 411 298 . 580 503 680 1298 296 1272 154 601 485 715 2194 945 2345 220 140 1543 5157 6609 9271 Guns 15524 | . 497 812 2101 302 . 243 2866 1394 72 298 . 227 357 640 536 296 634 154 271 223 677 1768 450 560 31 . 115 . . . Cannons 20075 | . 143 . . . . . . . . . . . . . . . . . . . . . 412 1785 189 . 1055 4668 6608 5215 Explosions 12993 | . 379 175 417 484 . 1228 1448 1067 339 . . 353 139 . 748 . 613 . 216 262 . 426 . . . . 373 317 . 4009 Melee 364 | . . . . . . . . 108 . . . . . . . . . . 114 . . . . . . 140 . . . 2 Ramming 570 | . 5 12 62 4 . . 15 47 . . . . 7 40 14 . 25 . . . 38 . 83 . . . . 172 1 45 Kinetic 30300 | . 497 812 2101 302 . 243 1904 . . 123 . 40 195 640 536 296 634 154 271 223 677 1768 450 2283 220 . 1170 4668 6608 3485 Thermal 5219 | . 143 . 80 . . . 962 1394 72 175 . 187 210 . . . . . . . . . 412 62 . . . . . 1522 Explosive 12252 | . 379 175 337 484 . 1228 1448 1067 339 . . 353 91 . 748 . . . 216 262 . 426 . . . . 373 317 . 4009 Electromagnetic 821 | . . . . . . . . . . . . . . . . . 613 . . . . . . . . . . . . 208 Impact 362 | . . . . . . . . 108 . . . . . . . . . . 114 . . . . . . 140 . . . . Slashing . | . . . . . . . . . . . . . . . . . . . . . . . . . . . . . . . Piercing 2 | . . . . . . . . . . . . . . . . . . . . . . . . . . . . . . 2 Highest Corruption 36 | . 1 1 2 3 3 3 . 4 4 2 2 2 . . . . 6 5 5 . . . 2 5 5 5 5 1 2 36 Average Corruption 2 | . 1 1 2 2 3 3 . 2 3 1 2 2 . . . . 3 5 4 . . . 1 3 5 5 5 1 1 6 Corruption Purged 9 | . . . . . . . . . 4 . . . . . . . . . 5 . . . . . . . . . . . Effects 224 | . 3 1 2 10 4 11 . 15 6 5 1 6 . . . . 3 7 9 . . . 4 19 18 7 13 6 28 46 Message Errors 69 | . 2 1 1 3 1 5 . 5 2 1 . 1 . . . . . 1 3 . . . 1 7 6 1 2 4 11 11 Matter Fused 40 | . . . . 2 1 2 . 2 2 . . . . . . . 2 4 4 . . . . 3 3 2 4 . . 9 Heat Flow Errors 32 | . . . 1 1 . 3 . 6 2 1 1 2 . . . . . 1 . . . . . 3 2 . . . 5 4 Energy Discharges 33 | . 1 . . 1 1 . . . . 1 . 1 . . . . . . . . . . 2 2 2 4 4 1 7 6 Data Loss (minor) 26 | . . . . 1 1 1 . 1 . 2 . 2 . . . . 1 . . . . . 1 3 2 . 1 1 5 4 Data Loss (major) 8 | . . . . . . . . . . . . . . . . . . 1 2 . . . . 1 1 . 1 . . 2 Misfires 7 | . . . . . . . . . . . . . . . . . . . . . . . . . 2 . 1 . . 4 Weapon Failures 9 | . . . . 2 . . . 1 . . . . . . . . . . . . . . . . . . . . . 6 Overload Shots . | . . . . . . . . . . . . . . . . . . . . . . . . . . . . . . . Overflow Damage 1890 | . . . 54 7 . 26 42 119 41 . . 5 . . 38 . 49 . 59 . . 15 21 236 21 . 29 392 69 667 Projectiles 1176 | . . . . . . . . . . . . . . . . . . . . . . . 21 236 21 . 20 384 69 425 Explosions 564 | . . . 54 7 . 26 42 28 41 . . 5 . . 38 . 49 . . . . 15 . . . . 9 8 . 242 Melee 150 | . . . . . . . . 91 . . . . . . . . . . 59 . . . . . . . . . . . Knockbacks 80 | . . . . . . . . 2 . . . . . 2 . . . . 1 . . . . 2 2 . 7 20 10 34 Impact 5 | . . . . . . . . 2 . . . . . 2 . . . . 1 . . . . . . . . . . . Kinetic 67 | . . . . . . . . . . . . . . . . . . . . . . . . 2 1 . 7 16 9 32 Secondary 8 | . . . . . . . . . . . . . . . . . . . . . . . . . 1 . . 4 1 2 Self-Inflicted Damage 1357 | . 19 . 132 107 . 19 141 . . . . 21 . . . . 198 . . . . 53 . . . . 36 . . 631 Shots 33 | . 1 . 4 3 . 2 6 . . . . 1 . . . . 3 . . . . 1 . . . . 2 . . 10 Rammed 56 | . 1 2 14 1 . . 3 . . . . . . 1 2 . 2 . . . 3 . 11 . . . . 13 1 2 Targets Rammed 68 | . 1 3 14 1 . . 3 4 . . . . 1 4 2 . 2 . . . 4 . 12 . . . . 14 1 2 Kicked 8 | . . . . . . . . 4 . . . . 1 3 . . . . . . . . . . . . . . . . Crushed 4 | . . 1 . . . . . . . . . . . . . . . . . . 1 . 1 . . . . 1 . . Highest Temperature 357 | . 267 14 241 134 . 240 299 357 245 83 230 167 331 27 12 . 2 227 15 . . 110 120 312 225 . 3 . 157 170 Average Temperature 77 | . 88 6 30 46 . 75 68 106 74 16 135 56 143 11 6 . 2 47 10 . . 34 38 137 113 . 3 . 70 92 Received Heat Transfer 3425 | . 72 102 337 60 . 162 657 216 . 27 . 120 135 191 162 45 78 . 27 9 216 166 54 20 . . 86 54 . 429 Effects 3 | . . . . . . . . 1 . . . . 1 . . . . . . . . . . 1 . . . . . . Energy Bleed 2 | . . . . . . . . 1 . . . . . . . . . . . . . . . 1 . . . . . . Interference 1 | . . . . . . . . . . . . . 1 . . . . . . . . . . . . . . . . . Siege Activations 53 | . . . . . . . . . . . . . . . 2 2 1 1 5 1 . 5 2 3 1 . 2 6 12 10 Total Turns 1247 | . . . . . . . . . . . . . . . 44 25 16 17 128 14 . 170 25 82 4 . 48 112 323 239 Longest Duration 89 | . . . . . . . . . . . . . . . 25 14 16 17 89 14 . 72 16 45 4 . 30 36 59 58 Robots Corrupted 4 | . . . . . . . . . . . . . . . . . 2 . . . . . . . . . . . . 2 Combat Hostiles 2 | . . . . . . . . . . . . . . . . . . . . . . . . . . . . . . 2 Parts Fried 9 | . . . . . . . . 2 . . . . . . . . 5 . 1 . . . . . . . . . . 1 Impact Corruptions 9 | . . . . . . . . 4 . . . . . . . . . . 2 . . . . . . 1 . . . 2 Robots Melted 2 | . . . . . . . 1 1 . . . . . . . . . . . . . . . . . . . . . . Combat Hostiles 2 | . . . . . . . 1 1 . . . . . . . . . . . . . . . . . . . . . . Parts Melted 20 | . . . . . . . 8 8 . 2 . . . . 1 . . . . . 1 . . . . . . . . . Heat Transferred 7294 | . 296 . 50 . . . 1924 2627 148 333 . 333 383 . . . . . . . . . 250 25 . . . . . 925 Parts Sabotaged . | . . . . . . . . . . . . . . . . . . . . . . . . . . . . . . . Parts Stolen . | . . . . . . . . . . . . . . . . . . . . . . . . . . . . . . . Parts Stripped . | . . . . . . . . . . . . . . . . . . . . . . . . . . . . . . . Power Chain Reactions 1 | . . . . . . . . . . . . . . . . . 1 . . . . . . . . . . . . . Missiles Intercepted . | . . . . . . . . . . . . . . . . . . . . . . . . . . . . . . . Alert | -11 -10 -10 -9 -9 -9 -8 -8 -7 -7 -7 -7 -6 -6 -6 -6 -6 -6 -5 -5 -5 -5 -4 -4 -4 -4 -4 -3 -3 -3 -3 ------- Run | Scr Mat Min Mat Min Exi Min Mat Fac Low Low Dat Pro Fac Ext Cet Arc Hub Fac Upp Upp War Pro Fac Upp Upp Zhi Pro Res Qua Sec Peak Influence 937 | . 323 274 604 235 . 322 727 666 . . . . 205 359 582 365 665 427 . . . . 240 . . . . 352 383 937 Initial 325 | . . 122 46 235 . . 47 301 . . . . . 14 200 232 . 325 . . . . 56 . . . . . 135 22 Average 242 | . 175 198 303 207 . 165 430 407 . . . . 55 114 330 173 130 373 . . . . 124 . . . . 173 111 473 Maximum Alert Level 3 | . 1 1 2 1 . 1 3 2 . . . . 1 1 2 1 2 2 . . . . 1 . . . . 1 1 3 Low Security (%) 47 | 100 51 41 20 42 . 75 10 1 . . . . 92 79 5 67 70 . . . . . 90 . . . . 57 81 8 Level 1 35 | . 48 58 55 57 . 24 33 59 . . . . 7 20 78 32 27 64 . . . . 9 . . . . 42 18 25 Level 2 16 | . . . 24 . . . 55 38 . . . . . . 15 . 2 35 . . . . . . . . . . . 57 Level 3 . | . . . . . . . . . . . . . . . . . . . . . . . . . . . . . . 8 Level 4 . | . . . . . . . . . . . . . . . . . . . . . . . . . . . . . . . Level 5 . | . . . . . . . . . . . . . . . . . . . . . . . . . . . . . . . High Security . | . . . . . . . . . . . . . . . . . . . . . . . . . . . . . . . Max Security . | . . . . . . . . . . . . . . . . . . . . . . . . . . . . . . . Squads Dispatched 54 | . 3 . 2 . . 1 6 9 . . . . 1 2 . . 3 2 . . . . 3 . . . . 2 3 17 Investigation 11 | . 3 . 2 . . . . 2 . . . . 1 . . . . 1 . . . . . . . . . . 1 1 Extermination 11 | . . . . . . . . 3 . . . . . . . . . 1 . . . . . . . . . 2 2 3 Reinforcement 24 | . . . . . . 1 6 3 . . . . . 2 . . 1 . . . . . 3 . . . . . . 8 Assault 3 | . . . . . . . . 1 . . . . . . . . . . . . . . . . . . . . . 2 Garrison 2 | . . . . . . . . . . . . . . . . . 2 . . . . . . . . . . . . . Intercept 3 | . . . . . . . . . . . . . . . . . . . . . . . . . . . . . . 3 Construction Impeded 8 | . . . . . . 1 . 1 . . . . . 1 . . 1 . . . . . . . . . . . . 4 Haulers Reinforced . | . . . . . . . . . . . . . . . . . . . . . . . . . . . . . . . Active Scanning Responses . | . . . . . . . . . . . . . . . . . . . . . . . . . . . . . . . Cargo Convoy Interrupts 1 | . . . . . . . . 1 . . . . . . . . . . . . . . . . . . . . . . Stealth | -11 -10 -10 -9 -9 -9 -8 -8 -7 -7 -7 -7 -6 -6 -6 -6 -6 -6 -5 -5 -5 -5 -4 -4 -4 -4 -4 -3 -3 -3 -3 --------- Run | Scr Mat Min Mat Min Exi Min Mat Fac Low Low Dat Pro Fac Ext Cet Arc Hub Fac Upp Upp War Pro Fac Upp Upp Zhi Pro Res Qua Sec Distress Signals 25 | . 1 2 4 1 . 1 1 2 . . . . 1 4 4 . 2 . . . . . . . . . . . . 2 Communications Jammed 80 | . . . . . . . . . . . . . . . . . . . . . . . 8 . . . . 70 2 . Distress Signals 76 | . . . . . . . . . . . . . . . . . . . . . . . 8 . . . . 66 2 . Times Spotted 487 | . 22 14 47 14 . 11 62 23 5 8 . 5 7 22 22 5 10 4 5 5 46 14 15 6 2 . 9 22 20 62 Peak Tracking Total 12 | . 4 5 6 7 . 5 11 5 3 4 . 4 4 5 8 1 4 2 4 4 12 5 6 2 1 . 2 3 3 10 Tactical Retreats 21 | . 1 1 1 . . 1 4 . 2 . . . . . 2 . . . . . 6 . 1 2 . . . . . . Traps | -11 -10 -10 -9 -9 -9 -8 -8 -7 -7 -7 -7 -6 -6 -6 -6 -6 -6 -5 -5 -5 -5 -4 -4 -4 -4 -4 -3 -3 -3 -3 ------- Run | Scr Mat Min Mat Min Exi Min Mat Fac Low Low Dat Pro Fac Ext Cet Arc Hub Fac Upp Upp War Pro Fac Upp Upp Zhi Pro Res Qua Sec Traps Triggered 7 | . . . 1 . . . . 1 . . . . 1 . . . 1 . . . . . 1 . . . . . 1 1 Indirectly 1 | . . . . . . . . . . . . . . . . . 1 . . . . . . . . . . . . . Trap Hack Attempts . | . . . . . . . . . . . . . . . . . . . . . . . . . . . . . . . Triggered . | . . . . . . . . . . . . . . . . . . . . . . . . . . . . . . . Disarmed 6 | . . . 6 . . . . . . . . . . . . . . . . . . . . . . . . . . . Reprogrammed . | . . . . . . . . . . . . . . . . . . . . . . . . . . . . . . . Reused . | . . . . . . . . . . . . . . . . . . . . . . . . . . . . . . . Traps Extracted . | . . . . . . . . . . . . . . . . . . . . . . . . . . . . . . . Installed . | . . . . . . . . . . . . . . . . . . . . . . . . . . . . . . . Triggered 15 | . . . . . . . . 2 . . . . . . . . . . . . 12 . . . 1 . . . . . Machines | -11 -10 -10 -9 -9 -9 -8 -8 -7 -7 -7 -7 -6 -6 -6 -6 -6 -6 -5 -5 -5 -5 -4 -4 -4 -4 -4 -3 -3 -3 -3 ---------- Run | Scr Mat Min Mat Min Exi Min Mat Fac Low Low Dat Pro Fac Ext Cet Arc Hub Fac Upp Upp War Pro Fac Upp Upp Zhi Pro Res Qua Sec Machines Disabled 58 | . . 1 1 . . . 3 1 . . . . 4 2 . 1 16 . 2 . . 2 1 . . . . 1 11 12 Max in Single Turn 11 | . . 1 1 . . . 2 1 . . . . 3 . . 1 11 . 1 . . 1 1 . . . . 1 1 1 Garrison Access 3 | . . . . . . . . . . . . . 1 . . . . . . . . . . . . . . . 1 1 Network Hub 2 | . . . . . . . . . . . . . . . . . 2 . . . . . . . . . . . . . Machines Sabotaged . | . . . . . . . . . . . . . . . . . . . . . . . . . . . . . . . Garrisons Compromised 1 | . . . . . . . . 1 . . . . . . . . . . . . . . . . . . . . . . Overloaded Fab Kills . | . . . . . . . . . . . . . . . . . . . . . . . . . . . . . . . Fab Network Shutdowns 1 | . . . . . . . . 1 . . . . . . . . . . . . . . . . . . . . . . Hacking | -11 -10 -10 -9 -9 -9 -8 -8 -7 -7 -7 -7 -6 -6 -6 -6 -6 -6 -5 -5 -5 -5 -4 -4 -4 -4 -4 -3 -3 -3 -3 --------- Run | Scr Mat Min Mat Min Exi Min Mat Fac Low Low Dat Pro Fac Ext Cet Arc Hub Fac Upp Upp War Pro Fac Upp Upp Zhi Pro Res Qua Sec Machines Accessed 82 | . 4 1 11 . 1 . 7 11 1 1 3 . 4 4 . . . 2 1 1 . . 2 2 . 4 . 5 7 10 Terminals 40 | . 2 1 7 . . . 4 5 . . . . 2 3 . . . . . . . . . 1 . . . 2 5 8 Fabricators 4 | . . . . . . . . 2 . . . . 1 . . . . . . . . . . . . . . 1 . . Repair Stations 8 | . 1 . 1 . . . 1 1 . . . . . . . . . 1 . . . . 2 . . . . 1 . . Recycling Units 6 | . 1 . 2 . . . . 2 . . . . . 1 . . . . . . . . . . . . . . . . Scanalyzers 8 | . . . 1 . . . 2 1 . . . . . . . . . 1 . . . . . . . . . 1 1 1 Garrison Access 3 | . . . . . . . . . . . . . 1 . . . . . . . . . . . . . . . 1 1 Total Hacks 287 | . 12 2 31 . 1 . 21 31 1 4 26 . 14 13 . . . 10 3 1 . . 11 4 . 17 . 20 31 34 Successful 171 | . 7 1 15 . 1 . 11 17 1 4 26 . 8 5 . . . 6 3 1 . . 7 4 . 17 . 9 12 16 Failed 116 | . 5 1 16 . . . 10 14 . . . . 6 8 . . . 4 . . . . 4 . . . . 11 19 18 Catastrophic 15 | . 1 . . . . . 1 1 . . . . . 1 . . . . . . . . 1 . . . . 4 3 3 Database Lockouts . | . . . . . . . . . . . . . . . . . . . . . . . . . . . . . . . Manual 97 | . 8 2 21 . . . 6 13 . . . . 4 6 . . . . . . 1 . . . . . . 9 11 16 Terminals 144 | . 7 2 24 . . . 13 17 . . . . 6 9 . . . . . . . . . 3 . . . 7 25 31 Fabricators 16 | . . . . . . . . 4 . . . . 6 . . . . . . . . . . . . . . 6 . . Repair Stations 28 | . 3 . 2 . . . 4 2 . . . . . . . . . 3 . . . . 11 . . . . 3 . . Recycling Units 16 | . 2 . 4 . . . . 6 . . . . . 4 . . . . . . . . . . . . . . . . Scanalyzers 24 | . . . 1 . . . 4 2 . . . . . . . . . 7 . . . . . . . . . 4 4 2 Garrison Access 5 | . . . . . . . . . . . . . 2 . . . . . . . . . . . . . . . 2 1 Terminal Hacks 99 | . 3 1 6 . 1 . 4 5 1 4 26 . 2 2 . . . . 3 1 . . . 4 . 17 . . 9 10 Record 22 | . . . . . 1 . . . . 4 6 . . . . . . . 3 . . . . 3 . 5 . . . . Part Schematic 16 | . 1 . . . . . . 1 . . 10 . . . . . . . . . . . . . . 4 . . . . Robot Schematic 7 | . . . . . . . . . . . 7 . . . . . . . . . . . . . . . . . . . Robot Analysis 11 | . 2 1 2 . . . 2 . . . . . . . . . . . . . . . . . . 4 . . . . Prototype ID Bank 10 | . . . . . . . 1 . . . 3 . . . . . . . . . . . . . . 4 . . 1 1 Open Door 4 | . . . . . . . . . 1 . . . 1 . . . . . . 1 . . . 1 . . . . . . Level Access Points 1 | . . . . . . . . . . . . . . . . . . . . . . . . . . . . . 1 . Branch Access Points 3 | . . . 1 . . . 1 1 . . . . . . . . . . . . . . . . . . . . . . Machine Index 2 | . . . . . . . . 1 . . . . . . . . . . . . . . . . . . . . . 1 Terminal Index 1 | . . . . . . . . . . . . . . . . . . . . . . . . . . . . . 1 . Fabricator Index 1 | . . . . . . . . . . . . . 1 . . . . . . . . . . . . . . . . . Repair Station Index 1 | . . . . . . . . . . . . . . . . . . . . . . . . . . . . . 1 . Unreport Threat 11 | . . . 1 . . . . 2 . . . . . 2 . . . . . . . . . . . . . . 3 3 Locate Traps 2 | . . . 1 . . . . . . . . . . . . . . . . . . . . . . . . . 1 . Disarm Traps 1 | . . . 1 . . . . . . . . . . . . . . . . . . . . . . . . . . . Recall Reinforcements 1 | . . . . . . . . . . . . . . . . . . . . . . . . . . . . . . 1 Recall Assault 1 | . . . . . . . . . . . . . . . . . . . . . . . . . . . . . . 1 Zone Layout 4 | . . . . . . . . . . . . . . . . . . . . . . . . . . . . . 1 3 Fabricator Hacks 8 | . . . . . . . . 2 . . . . 4 . . . . . . . . . . . . . . 2 . . Load Schematic 2 | . . . . . . . . . . . . . 1 . . . . . . . . . . . . . . 1 . . Build 6 | . . . . . . . . 2 . . . . 3 . . . . . . . . . . . . . . 1 . . Repair Station Hacks 20 | . 2 . 2 . . . 4 2 . . . . . . . . . 2 . . . . 7 . . . . 1 . . Scan Component 10 | . 1 . 1 . . . 2 1 . . . . . . . . . 1 . . . . 3 . . . . 1 . . Repair 9 | . 1 . 1 . . . 2 1 . . . . . . . . . 1 . . . . 3 . . . . . . . Refit 1 | . . . . . . . . . . . . . . . . . . . . . . . 1 . . . . . . . Recycling Unit Hacks 5 | . 1 . 2 . . . . 1 . . . . . 1 . . . . . . . . . . . . . . . . Retrieve Components 5 | . 1 . 2 . . . . 1 . . . . . 1 . . . . . . . . . . . . . . . . Scanalyzer 14 | . . . . . . . 2 2 . . . . . . . . . 4 . . . . . . . . . 3 1 2 Insert Component 9 | . . . . . . . 1 1 . . . . . . . . . 1 . . . . . . . . . 3 1 2 Analyze 5 | . . . . . . . 1 1 . . . . . . . . . 3 . . . . . . . . . . . . Garrison Access Hacks 2 | . . . . . . . . . . . . . 1 . . . . . . . . . . . . . . . 1 . Seal Access 2 | . . . . . . . . . . . . . 1 . . . . . . . . . . . . . . . 1 . Unauthorized Hacks 23 | . 1 . 5 . . . 1 5 . . . . 1 2 . . . . . . . . . . . . . 3 1 4 Terminals 15 | . . . 3 . . . 1 3 . . . . 1 1 . . . . . . . . . . . . . 2 1 3 Track 2 | . . . 1 . . . . . . . . . . . . . . . . . . . . . . . . . . 1 Assimilate 1 | . . . . . . . . 1 . . . . . . . . . . . . . . . . . . . . . . Botnet 10 | . . . 1 . . . 1 2 . . . . 1 1 . . . . . . . . . . . . . 1 1 2 Disrupt 2 | . . . 1 . . . . . . . . . . . . . . . . . . . . . . . . 1 . . Fabricators 2 | . . . . . . . . 1 . . . . . . . . . . . . . . . . . . . 1 . . Prioritize 1 | . . . . . . . . . . . . . . . . . . . . . . . . . . . . 1 . . Haulers 1 | . . . . . . . . 1 . . . . . . . . . . . . . . . . . . . . . . Repair Stations . | . . . . . . . . . . . . . . . . . . . . . . . . . . . . . . . Recycling Units 4 | . 1 . 1 . . . . 1 . . . . . 1 . . . . . . . . . . . . . . . . Mask 3 | . . . 1 . . . . 1 . . . . . 1 . . . . . . . . . . . . . . . . Tunnel 1 | . 1 . . . . . . . . . . . . . . . . . . . . . . . . . . . . . Scanalyzers 1 | . . . 1 . . . . . . . . . . . . . . . . . . . . . . . . . . . Extract 1 | . . . 1 . . . . . . . . . . . . . . . . . . . . . . . . . . . Garrison Access 1 | . . . . . . . . . . . . . . . . . . . . . . . . . . . . . . 1 Jam 1 | . . . . . . . . . . . . . . . . . . . . . . . . . . . . . . 1 Data Cores Recovered 2 | . . . . . . . . . . . . . . . . . . . . . . . . . . . . . . 2 Used . | . . . . . . . . . . . . . . . . . . . . . . . . . . . . . . . Hacking Detections 58 | . 3 1 9 . . . 6 9 . . . . 4 4 . . . 2 . . . . 2 . . . . 4 6 8 Full Trace Events 8 | . 3 . 2 . . . . 2 . . . . . . . . . 1 . . . . . . . . . . . . Feedback Events 1 | . 1 . . . . . . . . . . . . . . . . . . . . . . . . . . . . . Corruption 1 | . 1 . . . . . . . . . . . . . . . . . . . . . . . . . . . . . Feedback Blocked . | . . . . . . . . . . . . . . . . . . . . . . . . . . . . . . . Robot Schematics Acquired 7 | . . . . . . . . . . . 7 . . . . . . . . . . . . . . . . . . . Robots Built . | . . . . . . . . . . . . . . . . . . . . . . . . . . . . . . . Matter . | . . . . . . . . . . . . . . . . . . . . . . . . . . . . . . . Time . | . . . . . . . . . . . . . . . . . . . . . . . . . . . . . . . Total Robot Build Rating . | . . . . . . . . . . . . . . . . . . . . . . . . . . . . . . . Part Schematics Acquired 24 | . 1 . 6 . . . 1 2 . . 10 . . . . . . . . . . . . . . 4 . . . . Parts Built 11 | . . . . . . . . 4 . . . . 6 . . . . . . . . . . . . . . 1 . . Matter 1052 | . . . . . . . . 380 . . . . 570 . . . . . . . . . . . . . . 102 . . Time 286 | . . . . . . . . 94 . . . . 141 . . . . . . . . . . . . . . 51 . . Total Part Build Rating 51 | . . . . . . . . 20 . . . . 30 . . . . . . . . . . . . . . 1 . . Parts Repaired 9 | . 1 . 1 . . . 2 1 . . . . . . . . . 1 . . . . 3 . . . . . . . Time 453 | . 26 . 13 . . . 76 30 . . . . . . . . . 36 . . . . 272 . . . . . . . Parts Recycled . | . . . . . . . . . . . . . . . . . . . . . . . . . . . . . . . Recycled Matter . | . . . . . . . . . . . . . . . . . . . . . . . . . . . . . . . Retrieved Matter . | . . . . . . . . . . . . . . . . . . . . . . . . . . . . . . . Retrieved Components 13 | . 3 . 9 . . . . . . . . . . 1 . . . . . . . . . . . . . . . . Parts Scanalyzed 3 | . . . . . . . 1 1 . . . . . . . . . 1 . . . . . . . . . . . . Part Schematics Acquired 2 | . . . . . . . 1 1 . . . . . . . . . . . . . . . . . . . . . . Parts Damaged . | . . . . . . . . . . . . . . . . . . . . . . . . . . . . . . . Bothacking | -11 -10 -10 -9 -9 -9 -8 -8 -7 -7 -7 -7 -6 -6 -6 -6 -6 -6 -5 -5 -5 -5 -4 -4 -4 -4 -4 -3 -3 -3 -3 ------------ Run | Scr Mat Min Mat Min Exi Min Mat Fac Low Low Dat Pro Fac Ext Cet Arc Hub Fac Upp Upp War Pro Fac Upp Upp Zhi Pro Res Qua Sec Used RIF Installer . | . . . . . . . . . . . . . . . . . . . . . . . . . . . . . . . Robots Hacked 1 | . . . . . . . . . . . . . . 1 . . . . . . . . . . . . . . . . Non-combat 1 | . . . . . . . . . . . . . . 1 . . . . . . . . . . . . . . . . Combat . | . . . . . . . . . . . . . . . . . . . . . . . . . . . . . . . Robot Hacks Applied 1 | . . . . . . . . . . . . . . 1 . . . . . . . . . . . . . . . . no_distress 1 | . . . . . . . . . . . . . . 1 . . . . . . . . . . . . . . . . Relay Couplers Released 3 | . . . . . . . . . . . . . . . . . . . . . . . . . . . . . 3 . Programmers 3 | . . . . . . . . . . . . . . . . . . . . . . . . . . . . . 3 . Robots Rewired 16 | . . . . . . . . . . . . . . 13 . . . . 3 . . . . . . . . . . . Allies Hacked . | . . . . . . . . . . . . . . . . . . . . . . . . . . . . . . . Hacks Repelled . | . . . . . . . . . . . . . . . . . . . . . . . . . . . . . . . Allies | -11 -10 -10 -9 -9 -9 -8 -8 -7 -7 -7 -7 -6 -6 -6 -6 -6 -6 -5 -5 -5 -5 -4 -4 -4 -4 -4 -3 -3 -3 -3 -------- Run | Scr Mat Min Mat Min Exi Min Mat Fac Low Low Dat Pro Fac Ext Cet Arc Hub Fac Upp Upp War Pro Fac Upp Upp Zhi Pro Res Qua Sec Total Allies 25 | . . 1 . 3 . . . 1 . . . 1 . 14 . . . . 3 . . . . . . . . . . 2 Largest Group 14 | . . 1 . 3 . . . 1 . . . 1 1 14 8 . . . 3 3 2 . . . . . . . . 2 Highest-Rated Group 545 | . . 31 . 40 . . . 10 . . . 95 88 545 234 . . . 75 75 50 . . . . . . . . 112 Highest-Rated Ally 159 | . . 31 . 16 . . . 10 . . . 95 88 159 37 . . . 25 25 25 . . . . . . . . 56 Total Orders 3 | . . . . . . . . 3 . . . . . . . . . . . . . . . . . . . . . . STAY 1 | . . . . . . . . 1 . . . . . . . . . . . . . . . . . . . . . . FOLLOW 2 | . . . . . . . . 2 . . . . . . . . . . . . . . . . . . . . . . Ally Attacks 261 | . . 6 . 5 . . . . . . . 20 7 164 50 . . . . 7 . . . . . . . . . 2 Total Damage 5796 | . . 107 . 65 . . . . . . . 697 188 3558 888 . . . . 237 . . . . . . . . . 56 Kills 34 | . . 2 . . . . . . . . . 4 . 21 4 . . . . 2 . . . . . . . . . 1 Allies Corrupted . | . . . . . . . . . . . . . . . . . . . . . . . . . . . . . . . Allies Melted 2 | . . . . . . . . . . . . . . 2 . . . . . . . . . . . . . . . . Intel | -11 -10 -10 -9 -9 -9 -8 -8 -7 -7 -7 -7 -6 -6 -6 -6 -6 -6 -5 -5 -5 -5 -4 -4 -4 -4 -4 -3 -3 -3 -3 ------- Run | Scr Mat Min Mat Min Exi Min Mat Fac Low Low Dat Pro Fac Ext Cet Arc Hub Fac Upp Upp War Pro Fac Upp Upp Zhi Pro Res Qua Sec Robot Analysis Total 11 | . 2 1 2 . . . 2 . . . . . . . . . . . . . . . . . . 4 . . . . Derelict Logs Recovered 17 | . . 1 . 2 . . . . 2 2 . 2 . . . . . . 2 2 . 2 . 1 1 . . . . . Drone Launches 2 | . . . . . . . . . . . . . 2 . . . . . . . . . . . . . . . . . Drone Recoveries . | . . . . . . . . . . . . . . . . . . . . . . . . . . . . . . . Exploration | -11 -10 -10 -9 -9 -9 -8 -8 -7 -7 -7 -7 -6 -6 -6 -6 -6 -6 -5 -5 -5 -5 -4 -4 -4 -4 -4 -3 -3 -3 -3 ------------- Run | Scr Mat Min Mat Min Exi Min Mat Fac Low Low Dat Pro Fac Ext Cet Arc Hub Fac Upp Upp War Pro Fac Upp Upp Zhi Pro Res Qua Sec Turns Passed 29601 | 10 663 1131 1349 360 222 626 1841 1508 1796 931 98 668 672 1060 386 1217 364 351 1435 1078 1349 961 610 930 744 267 520 1257 3488 1709 Spaces Moved 14727 | 5 301 612 594 190 171 456 767 804 1220 649 76 463 409 606 156 130 166 178 705 626 717 375 198 473 440 153 257 529 1635 666 Core 98 | . . . . . . . 19 . . . . . . . . 79 . . . . . . . . . . . . . . Treads 9894 | 5 301 612 594 157 . . 604 178 . . . . . 118 156 51 166 178 705 626 717 375 198 473 440 153 257 529 1635 666 Legs 3931 | . . . . . . . . 626 1220 649 76 463 409 488 . . . . . . . . . . . . . . . . Wheels 804 | . . . . 33 171 456 144 . . . . . . . . . . . . . . . . . . . . . . . Hover . | . . . . . . . . . . . . . . . . . . . . . . . . . . . . . . . Flight . | . . . . . . . . . . . . . . . . . . . . . . . . . . . . . . . Fastest Speed 105 | 160 160 160 160 130 130 115 105 130 130 130 130 127 122 122 162 163 160 160 160 160 160 160 160 163 162 160 162 158 163 143 Average Speed 159 | 160 160 160 160 154 130 120 176 136 130 130 130 130 122 131 162 884 160 160 160 160 160 165 162 163 162 161 162 161 175 156 Slowest Speed 1350 | 160 160 160 160 160 130 130 450 260 130 210 130 207 128 205 163 1350 163 160 160 160 167 167 165 163 163 162 162 163 266 163 Overloaded Moves . | . . . . . . . . . . . . . . . . . . . . . . . . . . . . . . . Propulsion Burnouts . | . . . . . . . . . . . . . . . . . . . . . . . . . . . . . . . Robots Hopped . | . . . . . . . . . . . . . . . . . . . . . . . . . . . . . . . Cave-ins Triggered . | . . . . . . . . . . . . . . . . . . . . . . . . . . . . . . . Teleports 5 | . . . . . . . . . . . . . . . . . . . . . . . . . . . . . 4 1 Exploration Rate (%) 57 | 2 63 97 61 43 54 96 55 28 98 82 68 88 8 71 57 69 19 5 83 74 83 63 8 69 75 61 52 17 96 40 Regions Visited 30 Branch Regions 22 Pre-discovered Areas 10 | . 1 . . . 1 . . . . 1 1 . . . . . . . . 1 . 1 . . 1 3 . . . . Known Exits Taken 18 | . . . 1 . . . 1 1 1 1 1 1 1 1 1 1 1 1 1 1 1 . 1 . . . 1 . . . Unknown Exits Taken 12 | 1 1 1 . 1 1 1 . . . . . . . . . . . . . . . 1 . 1 1 1 . 1 1 . Scrap Searched 35 | . . 1 . 1 . 1 . . 12 2 . 2 . . . . . . 4 2 . 3 . 2 2 . 3 . . . Spaces Dug 111 | . . . . 6 . . . 2 6 . . . 11 . . . . 4 9 . 1 28 3 . . . 8 13 2 18 Terrain Destroyed 1346 | . 27 16 28 24 . 70 38 67 23 4 . 44 29 3 54 4 369 5 31 28 4 83 10 9 4 . 29 47 37 259 Melee 19 | . . . . . . . . 2 6 . . . 1 . . . . . 9 . 1 . . . . . . . . . Projectile 249 | . . . . . . . . 1 . . . . . . 4 4 5 5 11 7 2 51 10 9 4 . 12 31 37 56 AOE 1063 | . 27 16 28 24 . 70 38 64 17 . . 44 28 . 48 . 363 . 11 19 . 30 . . . . 17 16 . 203 Terrain Rammed . | . . . . . . . . . . . . . . . . . . . . . . . . . . . . . . . Walls Destroyed . | . . . . . . . . . . . . . . . . . . . . . . . . . . . . . . . Machines Disabled . | . . . . . . . . . . . . . . . . . . . . . . . . . . . . . . . Actions | -11 -10 -10 -9 -9 -9 -8 -8 -7 -7 -7 -7 -6 -6 -6 -6 -6 -6 -5 -5 -5 -5 -4 -4 -4 -4 -4 -3 -3 -3 -3 --------- Run | Scr Mat Min Mat Min Exi Min Mat Fac Low Low Dat Pro Fac Ext Cet Arc Hub Fac Upp Upp War Pro Fac Upp Upp Zhi Pro Res Qua Sec Total 18886 | 6 417 705 815 220 171 492 1067 1116 1405 688 75 506 538 775 238 175 217 231 956 678 866 581 439 581 466 172 319 806 2065 1100 Wait 2097 | . 33 33 63 1 . 2 116 194 159 14 . 15 50 67 16 29 9 30 187 29 79 111 199 52 21 . 31 122 232 203 Move 14699 | 4 300 611 593 189 170 455 766 803 1219 648 75 462 408 605 155 129 165 177 704 625 717 374 198 472 439 152 256 528 1634 666 Hop . | . . . . . . . . . . . . . . . . . . . . . . . . . . . . . . . Pick Up 197 | . 16 8 8 4 1 2 19 16 2 . . 3 13 4 9 . 2 4 3 1 5 2 4 8 1 2 3 20 20 17 Fast Attach 161 | . 3 2 4 . . 2 20 8 2 . . 2 6 8 5 3 4 1 3 3 8 5 6 3 1 7 1 9 24 21 Attach 71 | . . 1 4 4 . 2 6 2 . 1 . 4 2 . . . 1 2 . . 3 3 2 3 . 1 1 3 10 16 Detach 44 | . . 2 . . . . 7 6 . . . . 1 2 . . 1 2 . 1 4 1 . 3 . 1 . 3 5 5 Swap 236 | 2 12 5 18 2 . 4 16 17 8 6 . 8 20 9 7 1 4 4 8 5 14 6 . 7 1 . 2 13 20 17 Drop 274 | . 15 8 21 . . 1 25 19 2 . . 2 18 16 18 3 8 3 5 3 12 2 . 6 1 8 3 25 33 17 Fire 965 | . 37 32 90 19 . 24 89 44 6 19 . 10 17 38 26 10 21 8 15 11 20 77 19 27 2 . 22 69 83 130 Melee 61 | . . . . . . . . 3 7 . . . 2 22 . . . . 17 . 1 . . . . 1 . . 3 5 Ram . | . . . . . . . . . . . . . . . . . . . . . . . . . . . . . . . Kick 8 | . . . . . . . . 4 . . . . 1 3 . . . . . . . . . . . . . . . . Crush 58 | . 1 3 14 1 . . 3 . . . . . . 1 2 . 2 . . . 3 . 11 . . . . 14 1 2 Escape Stasis 1 | . . . . . . . . . . . . . . . . . . . . . . . . . . . . . . 1 Rewire 14 | . . . . . . . . . . . . . . . . . . . 14 . . . . . . . . . . . Trap . | . . . . . . . . . . . . . . . . . . . . . . . . . . . . . . . Miscellaneous . | . . . . . . . . . . . . . . . . . . . . . . . . . . . . . . . Route ------- -11/Scrapyard -10/Materials (discovered 2 exits: *Mat / *Min) -10/Mines (discovered 2 exits: *Mat x2) -9/Materials (discovered 3 exits: *Mat / *Min x2) -9/Mines (discovered 2 exits: *Mat / *Exi) -9/Exiles -8/Mines (discovered 2 exits: *Mat x2) -8/Materials (discovered 2 exits: *Fac x2) -7/Factory (discovered 4 exits: *Fac / Sto / *Low x2) -7/Lower Caves -7/Lower Caves -7/Data Miner -6/Proximity Caves -6/Factory (discovered 3 exits: Low x2 / *Ext) -6/Extension (discovered 2 exits: *Fac / *Cet) -6/Cetus (discovered 2 exits: *Fac / *Arc) -6/Archives (discovered 2 exits: *Fac / *Hub) -6/Hub_04(d) (discovered 2 exits: *Fac x2) -5/Factory -5/Upper Caves -5/Upper Caves (discovered 2 exits: *Fac / *War) -5/Warlord -4/Proximity Caves -4/Factory (discovered 3 exits: *Res / *Upp / Arm) -4/Upper Caves -4/Upper Caves -4/Zhirov -3/Proximity Caves -3/Research -3/Quarantine (discovered 2 exits: *Res / *Sec) -3/Section 7 History --------- Turn | Location | Event 4 | -11/Scrapyard | Discovered new exit (range 3) 11 | -11/Scrapyard | Entered Materials 318 | -10/Materials | Build established: Mutant 444 | -10/Materials | Discovered new exit (range 14) 619 | -10/Materials | Repaired Lgt. Treads 655 | -10/Materials | Discovered new exit (range 9) 674 | -10/Materials | Entered Mines 752 | -10/Mines | Received a Mining Laser from a helpful Derelict 790 | -10/Mines | Excavation squad dispatched 790 | -10/Mines | A large section of the Mines collapsed 843 | -10/Mines | YI-UF0 nonchalantly dropped a Grenade Launcher on the ground 855 | -10/Mines | Destroyed YI-UF0 865 | -10/Mines | Found Prototype Storage 865 | -10/Mines | Identified YI-UF0's Bottomless Matter Pit 1040 | -10/Mines | Excavation squad dispatched 1199 | -10/Mines | Discovered new exit (range 5) 1383 | -10/Mines | Joined a pair of Derelicts in attacking an 0b10 outpost 1615 | -10/Mines | Discovered new exit (range 11) 1628 | -10/Mines | Learned Materials non-interactive machine intel 1805 | -10/Mines | Entered Materials 1805 | -9/Materials | Evolved 2 slots: Propulsion x1, Utility x1 1806 | -9/Materials | Loaded intel: 38 non-interactive machine locations 2071 | -9/Materials | Identified exit to Mines 2170 | -9/Materials | Build established: Scavenger-Mutant 2572 | -9/Materials | Discovered new exit (range 15) 2593 | -9/Materials | Build established: Mutant 2623 | -9/Materials | Repaired Lgt. Treads 3066 | -9/Materials | Build established: Scavenger-Mutant 3154 | -9/Materials | Entered Mines 3185 | -9/Mines | Discovered new exit (range 16) 3186 | -9/Mines | Learned location of 1 exit from Materials 3188 | -9/Mines | Learned Materials interactive machine intel 3209 | -9/Mines | Assisted by bots powering up and referring to "LRC-V3" 3256 | -9/Mines | Assembled infested the area 3261 | -9/Mines | Assisted by a Guerilla fighting off Assembled 3309 | -9/Mines | Destroyed 11 combat bots 3319 | -9/Mines | Lost 3 parts (1n2u) 3507 | -9/Mines | Deemed a non-threat by the Exiles lab entrance 3509 | -9/Mines | Discovered new exit (range 5) 3514 | -9/Mines | Entered Exiles 3548 | -9/Exiles | Met 8R-AWN 3574 | -9/Exiles | Build established: Mutant 3583 | -9/Exiles | Met EX-HEX 3651 | -9/Exiles | Met EX-DEC 3674 | -9/Exiles | Learned location of Zion (-6) 3723 | -9/Exiles | Discovered new exit (range 12) 3736 | -9/Exiles | Entered Mines 3999 | -8/Mines | Discovered new exit (range 15) 4037 | -8/Mines | Lost 4 parts (1p1n1u1w) 4053 | -8/Mines | Discovered new exit (range 5) 4362 | -8/Mines | Entered Materials 4362 | -8/Materials | Evolved 2 slots: Utility x1, Weapon x1 4363 | -8/Materials | Identified exit to Factory 4364 | -8/Materials | Loaded intel: 19 interactive machine locations 4624 | -8/Materials | Core integrity fell below 50% 4661 | -8/Materials | Destroyed 10 combat bots 4666 | -8/Materials | Lost 7 parts (1p3n3w) 5051 | -8/Materials | Build established: Gunner 5513 | -8/Materials | Discovered exit to Factory (range 8) 5659 | -8/Materials | Repaired Titanium Leg 5698 | -8/Materials | Repaired Imp. Light Armor Plating 5999 | -8/Materials | Build established: Scavenger-Tank 6203 | -8/Materials | Entered Factory 6203 | -7/Factory | Evolved 2 slots: Propulsion x1, Utility x1 6407 | -7/Factory | Identified exit to Storage 6407 | -7/Factory | Identified exit to Lower Caves 6806 | -7/Factory | Repaired Hvy. Particle Gun 6983 | -7/Factory | Fabricated Hyp. Gauss Rifle (x2) 7034 | -7/Factory | Fabricated Hyp. Gauss Rifle (x2) 7195 | -7/Factory | Local fabrication network quarantined 7197 | -7/Factory | Discovered new exit (range 13) 7231 | -7/Factory | Identified exit to Factory 7403 | -7/Factory | First assault squad dispatched 7477 | -7/Factory | Cargo convoy interrupted 7515 | -7/Factory | Build established: Tank 7711 | -7/Factory | Entered Lower Caves 8395 | -7/Lower Caves | Build established: Skirmisher 8463 | -7/Lower Caves | Learned 4 Factory zone layouts 8559 | -7/Lower Caves | Encountered a Warlord checkpoint 8867 | -7/Lower Caves | Discovered new exit (range 11) 8999 | -7/Lower Caves | Identified exit to Lower Caves 9507 | -7/Lower Caves | Entered another Lower Caves area 9657 | -7/Lower Caves | Learned Factory garrison access intel 9783 | -7/Lower Caves | Encountered a Warlord checkpoint 10145 | -7/Lower Caves | Learned Factory stockpile data 10396 | -7/Lower Caves | Discovered new exit (range 15) 10422 | -7/Lower Caves | Identified exit to Data Miner 10438 | -7/Lower Caves | Entered Data Miner 10438 | -7/Data Miner | Discovered new exit (range 6) 10463 | -7/Data Miner | Met Data Miner 10488 | -7/Data Miner | Learned location of Section 7 (-3) 10488 | -7/Data Miner | Acquired the access code to Warlord's prototype stash 10505 | -7/Data Miner | Received God Mode back door access code from Data Miner 10535 | -7/Data Miner | Identified exit to Proximity Caves 10536 | -7/Data Miner | Entered Proximity Caves 10561 | -6/Proximity Caves | Escorted by Enhanced Grunt 10800 | -6/Proximity Caves | Spotted B-75 Beast 10824 | -6/Proximity Caves | Allies destroyed B-75 Beast 10850 | -6/Proximity Caves | Lost 3 parts (2u1w) 11086 | -6/Proximity Caves | Discovered exit to Factory (range 14) 11095 | -6/Proximity Caves | Learned Factory emergency access door positions 11141 | -6/Proximity Caves | Build established: Scavenger-Skirmisher 11204 | -6/Proximity Caves | Entered Factory 11204 | -6/Factory | Accompanied by 1 ally 11204 | -6/Factory | Evolved 2 slots: Propulsion x1, Utility x1 11205 | -6/Factory | Identified exit to Lower Caves 11205 | -6/Factory | Identified exit to Extension 11209 | -6/Factory | Loaded intel: 4 garrison access locations 11410 | -6/Factory | Incoming investigation squad redirected 11612 | -6/Factory | Fabricated Hyp. Gauss Rifle (x2) 11661 | -6/Factory | Fabricated Hyp. Gauss Rifle? 11726 | -6/Factory | Fabricated Hyp. Gauss Rifle (x2) 11876 | -6/Factory | Entered Extension 12100 | -6/Extension | Rescued A7 12645 | -6/Extension | Spotted B-75 Beast 12665 | -6/Extension | Spotted B-75 Beast 12677 | -6/Extension | Allies destroyed B-75 Beast 12740 | -6/Extension | Build established: Commander-Tank 12773 | -6/Extension | Extracted ID and sensor layout for unrecognized location from A7's data core 12877 | -6/Extension | Discovered new exit (range 16) 12879 | -6/Extension | Discovered new exit (range 15) 12908 | -6/Extension | Found Prototype Device 12935 | -6/Extension | Identified exit to Cetus 12936 | -6/Extension | Entered Cetus 12936 | -6/Cetus | Accompanied by 8 allies 12958 | -6/Cetus | Spotted Cetus Guard 12958 | -6/Cetus | Spotted Cetus Guard 12961 | -6/Cetus | Spotted Cetus Guard 12962 | -6/Cetus | Spotted Cetus Guard 12972 | -6/Cetus | Allies destroyed Cetus Guard 12983 | -6/Cetus | Destroyed Cetus Guard 12986 | -6/Cetus | Destroyed Cetus Guard 13107 | -6/Cetus | Discovered new exit (range 15) 13137 | -6/Cetus | Spotted Cetus Guard 13137 | -6/Cetus | Spotted Cetus Guard 13139 | -6/Cetus | Destroyed Cetus Guard 13141 | -6/Cetus | Spotted Cetus Guard 13153 | -6/Cetus | Destroyed Cetus Guard 13156 | -6/Cetus | Destroyed Cetus Guard 13157 | -6/Cetus | Spotted Cetus Guard 13163 | -6/Cetus | Destroyed Cetus Guard 13191 | -6/Cetus | Discovered new exit (range 15) 13199 | -6/Cetus | Met Revision 17 13291 | -6/Cetus | Build established: Scavenger-Tank 13299 | -6/Cetus | Destroyed 8 combat bots 13321 | -6/Cetus | Identified exit to Archives 13322 | -6/Cetus | Entered Archives 13420 | -6/Archives | Discovered new exit (range 16) 13446 | -6/Archives | Discovered new exit (range 15) 14538 | -6/Archives | Identified exit to Hub_04(d) 14539 | -6/Archives | Entered Hub_04(d) 14595 | -6/Hub_04(d) | Discovered new exit (range 16) 14631 | -6/Hub_04(d) | Identified exit to Factory 14712 | -6/Hub_04(d) | Discovered exit to Factory (range 15) 14728 | -6/Hub_04(d) | Garrison activated, responded to threat 14794 | -6/Hub_04(d) | Network Hub disabled 14823 | -6/Hub_04(d) | Build established: Scavenger-Skirmisher 14838 | -6/Hub_04(d) | Spotted Lightning 14852 | -6/Hub_04(d) | Destroyed Lightning 14857 | -6/Hub_04(d) | Found Prototype Device 14857 | -6/Hub_04(d) | Identified EM Dispersion Field 14868 | -6/Hub_04(d) | Found Prototype Device 14868 | -6/Hub_04(d) | Identified Exp. Phase Shifter 14875 | -6/Hub_04(d) | Found Prototype Energy Cannon 14895 | -6/Hub_04(d) | Network Hub disabled 14903 | -6/Hub_04(d) | Entered Factory 14903 | -5/Factory | Evolved 2 slots: Power x1, Utility x1 14904 | -5/Factory | Identified Active Sensor Suite 15056 | -5/Factory | Repaired Centrium Heavy Treads 15215 | -5/Factory | Discovered new exit (range 7) 15225 | -5/Factory | Identified exit to Upper Caves 15254 | -5/Factory | Entered Upper Caves 15296 | -5/Upper Caves | Learned Extension emergency access door positions 15296 | -5/Upper Caves | Learned Extension terminal intel 16179 | -5/Upper Caves | Learned 8 Factory zone layouts 16179 | -5/Upper Caves | Discovered new exit (range 10) 16193 | -5/Upper Caves | Identified exit to Upper Caves 16233 | -5/Upper Caves | Learned 4 Factory zone layouts 16270 | -5/Upper Caves | Attracted the attention of an 0b10 checkpoint 16689 | -5/Upper Caves | Entered another Upper Caves area 16689 | -5/Upper Caves | Accompanied by 3 allies 16691 | -5/Upper Caves | Attracted the attention of an 0b10 checkpoint 16724 | -5/Upper Caves | Discovered new exit (range 10) 17032 | -5/Upper Caves | Learned location of Warlord (-5) 17137 | -5/Upper Caves | Encountered a Warlord checkpoint 17237 | -5/Upper Caves | Discovered new exit (range 10) 17444 | -5/Upper Caves | Identified exit to Warlord 17767 | -5/Upper Caves | Entered Warlord 17767 | -5/Warlord | Accompanied by 2 allies 18602 | -5/Warlord | Met Warlord 18611 | -5/Warlord | Warlord's base attacked by MAIN.C 18617 | -5/Warlord | Opened Warlord's prototype stash 18622 | -5/Warlord | Found Prototype Reactor 18622 | -5/Warlord | Identified Vortex Chain Reactor 18803 | -5/Warlord | Spotted B-75 Beast 18947 | -5/Warlord | Warlord forces counterattacked 19024 | -5/Warlord | Spotted B-75 Beast 19025 | -5/Warlord | Spotted B-86 Titan 19043 | -5/Warlord | Spotted Executioner 19062 | -5/Warlord | Destroyed B-75 Beast 19078 | -5/Warlord | Found Corrupted Prototype Ballistic Cannon 19079 | -5/Warlord | Discovered new exit (range 15) 19095 | -5/Warlord | Lost 4 parts (1n1u2w) 19111 | -5/Warlord | Spotted Executioner 19114 | -5/Warlord | Identified exit to Proximity Caves 19116 | -5/Warlord | Entered Proximity Caves 19479 | -4/Proximity Caves | Attracted the attention of an 0b10 checkpoint 19620 | -4/Proximity Caves | Spotted B-86 Titan 19659 | -4/Proximity Caves | Build established: Scavenger-Tank 19701 | -4/Proximity Caves | Acquired the password to a Derelict Tinkerer's latest research 19887 | -4/Proximity Caves | Destroyed B-86 Titan 19916 | -4/Proximity Caves | Lost 3 parts (1p1n1u) 20037 | -4/Proximity Caves | Discovered new exit (range 11) 20077 | -4/Proximity Caves | Entered Factory 20077 | -4/Factory | Evolved 2 slots: Propulsion x1, Utility x1 20078 | -4/Factory | Identified exit to Upper Caves 20078 | -4/Factory | Identified exit to Armory 20079 | -4/Factory | Identified exit to Research 20248 | -4/Factory | Build established: Scavenger-Mutant 20368 | -4/Factory | Repaired Centrium Medium Armor Plating 20478 | -4/Factory | Repaired Centrium Heavy Treads 20535 | -4/Factory | Repaired Arm. Medium Treads 20687 | -4/Factory | Entered Upper Caves 20716 | -4/Upper Caves | Lost 3 parts (1n2u) 20750 | -4/Upper Caves | Identified EMDS 20888 | -4/Upper Caves | Identified Hvy. Autocannon 20916 | -4/Upper Caves | Spotted B-86 Titan 20965 | -4/Upper Caves | Destroyed B-86 Titan 20993 | -4/Upper Caves | Learned Research terminal intel 21330 | -4/Upper Caves | Discovered new exit (range 5) 21348 | -4/Upper Caves | Attracted the attention of an 0b10 checkpoint 21435 | -4/Upper Caves | Build established: Scavenger-Tank 21440 | -4/Upper Caves | Attacked by a delusional Derelict stockpiling parts 21617 | -4/Upper Caves | Entered another Upper Caves area 21837 | -4/Upper Caves | Learned location of Testing (-2) 22189 | -4/Upper Caves | Discovered new exit (range 14) 22205 | -4/Upper Caves | Spotted B-86 Titan 22361 | -4/Upper Caves | Entered Zhirov 22361 | -4/Zhirov | Discovered new exit (range 3) 22394 | -4/Zhirov | Met Zhirov 22429 | -4/Zhirov | Learned location of Quarantine (-3) 22429 | -4/Zhirov | Learned location of Command (-1) 22439 | -4/Zhirov | Zhirov requested help retrieving the SGEMP Prototype 22465 | -4/Zhirov | Found Alien Artifact 22465 | -4/Zhirov | Identified Integrated Dissipator 22465 | -4/Zhirov | Installed Integrated Dissipator, increased core heat dissipation (+20) 22559 | -4/Zhirov | Found Alien Artifact 22628 | -4/Zhirov | Entered Proximity Caves 22920 | -3/Proximity Caves | Attracted the attention of an 0b10 checkpoint 23120 | -3/Proximity Caves | Discovered exit to Research (range 15) 23146 | -3/Proximity Caves | Attracted the attention of an 0b10 outpost 23148 | -3/Proximity Caves | Entered Research 23148 | -3/Research | Evolved 2 slots: Utility x2 23149 | -3/Research | Loaded intel: 20 terminal locations 23280 | -3/Research | Found Prototype Slashing Weapon 23299 | -3/Research | Fabricated Huge Storage Unit (x1) 23387 | -3/Research | Identified Transdimensional Reconstructor 23387 | -3/Research | Identified Vibroblade 24208 | -3/Research | Spotted B-90 Cyclops 24302 | -3/Research | Destroyed B-90 Cyclops 24336 | -3/Research | Discovered new exit (range 9) 24405 | -3/Research | Entered Quarantine 24420 | -3/Quarantine | Identified exit to Research 24527 | -3/Quarantine | Found Alien Artifact 24527 | -3/Quarantine | Identified Terrabomb 24527 | -3/Quarantine | Used Terrabomb 24786 | -3/Quarantine | Cryocooling Duct disabled 24801 | -3/Quarantine | Ambient heat levels rising (+20) 24801 | -3/Quarantine | Non-combat units ordered to evacuate 24907 | -3/Quarantine | Cryocooling Duct disabled 24922 | -3/Quarantine | Ambient heat levels rising (+20) 24922 | -3/Quarantine | Combat units ordered to evacuate 25009 | -3/Quarantine | Found Alien Artifact 25009 | -3/Quarantine | Identified Matter Drive 25022 | -3/Quarantine | Quarantine Guard activated 25095 | -3/Quarantine | Spotted Quarantine Guard 25095 | -3/Quarantine | Found Alien Artifact 25103 | -3/Quarantine | Spotted Quarantine Guard 25120 | -3/Quarantine | Destroyed Quarantine Guard 25133 | -3/Quarantine | Spotted Quarantine Guard 25136 | -3/Quarantine | Spotted Quarantine Guard 25139 | -3/Quarantine | Destroyed Quarantine Guard 25156 | -3/Quarantine | Destroyed Quarantine Guard 25160 | -3/Quarantine | Spotted Quarantine Guard 25179 | -3/Quarantine | Destroyed Quarantine Guard 25221 | -3/Quarantine | Destroyed Quarantine Guard 25403 | -3/Quarantine | Found Alien Artifact 25551 | -3/Quarantine | Found Alien Artifact 25551 | -3/Quarantine | Identified Phase Redirector 25616 | -3/Quarantine | Spotted Quarantine Guard 25750 | -3/Quarantine | Identified Core Reset Matrix 25756 | -3/Quarantine | Identified Subatomic Replicator 25784 | -3/Quarantine | Destroyed Quarantine Guard 25822 | -3/Quarantine | Spotted Quarantine Guard 25860 | -3/Quarantine | Destroyed Quarantine Guard 25989 | -3/Quarantine | Spotted Quarantine Guard 26028 | -3/Quarantine | Spotted Quarantine Guard 26046 | -3/Quarantine | Destroyed Quarantine Guard 26074 | -3/Quarantine | Destroyed Quarantine Guard 26085 | -3/Quarantine | Spotted Quarantine Guard 26144 | -3/Quarantine | Destroyed Quarantine Guard 26368 | -3/Quarantine | Found Alien Artifact 26368 | -3/Quarantine | Identified Phase Armor 26668 | -3/Quarantine | Build established: Scavenger-Mutant 26684 | -3/Quarantine | Found Alien Artifact 26684 | -3/Quarantine | Identified Dimensional Node Initializer 26684 | -3/Quarantine | Initialized slip node 26693 | -3/Quarantine | Found Alien Artifact 26705 | -3/Quarantine | Found Transdimensional Reconstructor 26711 | -3/Quarantine | Found Transdimensional Reconstructor 26731 | -3/Quarantine | Found Dimensional Node Initializer 26751 | -3/Quarantine | Found Transdimensional Reconstructor 27186 | -3/Quarantine | Identified Hpw. Transdimensional Reconstructor 27186 | -3/Quarantine | Warped through subspace to slip node 27190 | -3/Quarantine | Found Dimensional Node Initializer 27451 | -3/Quarantine | Spotted Fortress 27453 | -3/Quarantine | Warped through subspace to slip node 27737 | -3/Quarantine | Warped through subspace 27789 | -3/Quarantine | Warped through subspace 27790 | -3/Quarantine | Core integrity fell below 50% 27853 | -3/Quarantine | Discovered new exit (range 6) 27853 | -3/Quarantine | Spotted Quarantine Guard 27866 | -3/Quarantine | Destroyed Quarantine Guard 27893 | -3/Quarantine | Entered Section 7 27914 | -3/Section 7 | Found Integrated Dissipator 27914 | -3/Section 7 | Installed Integrated Dissipator, increased core heat dissipation (+20) 28000 | -3/Section 7 | Found Fusion Bomb Launcher 28001 | -3/Section 7 | Spotted B-86 Titan 28002 | -3/Section 7 | Found Fusion Bomb Launcher 28175 | -3/Section 7 | Found Integrated Dissipator 28175 | -3/Section 7 | Installed Integrated Dissipator, increased core heat dissipation (+20) 28317 | -3/Section 7 | Found Prototype Processor 28317 | -3/Section 7 | Identified Spectral Analyzer 28343 | -3/Section 7 | Found Alien Artifact 28343 | -3/Section 7 | Identified Integrated Mediator 28343 | -3/Section 7 | Installed Integrated Mediator, increased core attachment efficiency. 28539 | -3/Section 7 | Found Integrated Dissipator 28539 | -3/Section 7 | Installed Integrated Dissipator, increased core heat dissipation (+20) 28815 | -3/Section 7 | Spotted S7 Guard 28837 | -3/Section 7 | Destroyed S7 Guard 28955 | -3/Section 7 | Found Alien Artifact 29014 | -3/Section 7 | Spotted S7 Guard 29044 | -3/Section 7 | Destroyed S7 Guard 29055 | -3/Section 7 | System corruption reached 10% 29066 | -3/Section 7 | Found Alien Artifact 29094 | -3/Section 7 | Identified Core Regenerator 29094 | -3/Section 7 | Identified Integrated Heat Negator 29094 | -3/Section 7 | Used Core Regenerator, restored core integrity (+325) 29095 | -3/Section 7 | Installed Integrated Heat Negator, increased core heat dissipation (+40) 29143 | -3/Section 7 | First assault squad dispatched 29162 | -3/Section 7 | Incoming assault squad redirected 29260 | -3/Section 7 | Warped through subspace 29517 | -3/Section 7 | Found Prototype Processor 29517 | -3/Section 7 | Identified Exp. Melee Analysis Suite 29564 | -3/Section 7 | Scanned by Researcher 29565 | -3/Section 7 | Intercept squad dispatched 29568 | -3/Section 7 | Spotted Tracker 29569 | -3/Section 7 | Spotted Tracker 29575 | -3/Section 7 | Spotted Combat Programmer 29576 | -3/Section 7 | Spotted Combat Programmer 29589 | -3/Section 7 | Destroyed Tracker 29589 | -3/Section 7 | Destroyed Tracker 29597 | -3/Section 7 | System corruption reached 30% 29599 | -3/Section 7 | Core integrity fell below 20% 29599 | -3/Section 7 | Released all parts (9) 29602 | -3/Section 7 | Destroyed by Combat Programmer with EMDS Last Messages --------------- 29598_ Penetrated by EMDS Slug. 29599_ The unstable cave ceiling collapses. 29599_ Released Adv. Coolant Injector. 29599_ Released Huge Storage Unit. 29599_ Released Hacking Suite. 29599_ Released Adv. Signal Interpreter. 29599_ Released Hacking Suite. 29599_ Released Spectral Analyzer. 29599_ Released Hacking Suite. 29599_ Released Adv. Target Analyzer. 29599_ Released YI-UF0's Bottomless Matter Pit. 29599_ Penetrated by EMDS Slug. 29600_ The unstable cave ceiling collapses. 29600_ Slug penetrates Earth. 29600_ Penetrated by Slug. 29600_ Held in stasis. 29600_ C-55 Analyst is analyzing... 29601_ Penetrated by EMDS Slug. 29602_ K-01 Serf collects debris. 29602_ Penetrated by EMDS Slug. Map ----- +----------------------------------------------------+ | | | | | | | | | ?????????????????????????????????????????????????? | | ?????????????????????????????????????????????????? | | ?????????????????????????????????????????????????? | | ?????????????????????????????????????????????????? | | ?????????????????????????????????????????????????? | | ?????????????????????????????????????????????????? | | ?????????????????????????????????????????????????? | | ?????????????????????????????????????????????????? | | ???????????????????????###+##????????H???????????? | | ???????????????????????# #????????????????????? | | ???????????????????????# #????????????????????? | | ???????????????????????# #????????????????????? | | ???????????????????????+ #??????#?????????????? | | ???????????????????????# #?????"#?????????????? | | ???????????????????????# #????""#?????????????? | | ???????????????????????# #???"""#?????????????? | | ???????????????????????# #?? """#?????????????? | | ??????????????#???????## ## """#?????????????? | | ??????????##### ####### #?????????????? | | ??????????# /! # #?????????????? | | ??????????# ]] !!!!] # #?????????? | | ??????????# ] !]@!! # #????? | | ??????????# % !!! # ??? | | ??????????# /! p g x=%! ?? | | ??????????# """"" g [ ?? | | ??????????# """"" c p x ?? | | ??????????? """"" # ! ?? | | ??????????# k ###??? | | ??????????# # #???? | | ??????????# #???? | | ??????????# p [ " # #???? | | ??????????############?# = #? ????? | | ??????????##### ??????# # """ # #???? | | ??????????# ????# # "" =!!# #???? | | ??????????# # ###A % # "" =!!#?? #???? | | ??????????# # # k # = !#????= #???? | | #####?????# ## ###|[% " # ######??????????? | | [% = %% % #?????????????? | | =% % * #?????????????? | | = #?????????????? | | #?????????????? | | ??????####" ######### #+###?????????????? | | #??????## # "" ####????????????? | | #???????# # # " """#????????????? | | ###???????####??# + #????????????? | | #????##?????????# # """#????????????? | +----------------------------------------------------+ Best States ------------- Heat Dissipation 192 Coolant Potential 100 Energy Generation 55 Energy Capacity 1080 Matter Stores 300 Matter Capacity 300 Sight Range 24 Robot Scan Range 20 Terrain Scan Range 16 Terrain Scan Density 10 Jamming Range 16 Armor Coverage 900 Resistance: TH 30 Resistance: EM 75 Propulsion Shielding 66 Weapon Shielding 90 Evasion (%) 60 Targeting Accuracy 12 Target Analysis 8 Armor Integrity Analysis 20 Recoil Reduction 6 Particle Charging 30 Kinecelleration 40 Offensive Hacking 30 Defensive Hacking 10 Item Schematics ----------------- Huge Storage Unit | -10/Materials | Hacked Hcp. Storage Unit | -9/Materials | Extracted Particle Cannon | -9/Materials | Extracted Plasma Cutter | -9/Materials | Extracted Imp. Assault Rifle | -9/Materials | Extracted Particle Gun | -9/Materials | Extracted Maul | -9/Materials | Extracted Cmb. Airjet | -8/Materials | Scanalyzed Hyp. Gauss Rifle | -7/Factory | Scanalyzed Imp. System Backup Module | -7/Factory | Hacked Combat Drone Bay | -7/Data Miner | Free Lgt. Regenerative Plating | -7/Data Miner | Free Exp. Cesium-ion Thruster | -7/Data Miner | Free Triangulator | -7/Data Miner | Free Exp. Terrain Scan Processor | -7/Data Miner | Free Exp. Targeting Computer | -7/Data Miner | Free Tactical Coordination Suite | -7/Data Miner | Free Exp. Transmission Jammer | -7/Data Miner | Free Cloaking Device | -7/Data Miner | Free Kinetic Spear | -7/Data Miner | Free Assault Drone Bay | -4/Zhirov | Free Exp. Heat Sink | -4/Zhirov | Free Exp. Optical Array | -4/Zhirov | Free Imp. Arc Thrower | -4/Zhirov | Free Robot Schematics ------------------ S-27 Virus | -7/Data Miner | Free G-50 Soldier | -7/Data Miner | Free X-72 Disruptor | -7/Data Miner | Free H-66 Slayer | -7/Data Miner | Free P-70 Sage | -7/Data Miner | Free I-36 Angel | -7/Data Miner | Free I-47 Archangel | -7/Data Miner | Free Fabricated ------------ Hyp. Gauss Rifle | x2 | -7/Factory | Preloaded Hyp. Gauss Rifle | x2 | -7/Factory | Preloaded Hyp. Gauss Rifle | x2 | -6/Factory Hyp. Gauss Rifle | x2 | -6/Factory Hyp. Gauss Rifle | x2 | -6/Factory Huge Storage Unit | x1 | -3/Research Alien Tech Used ----------------- Integrated Dissipator Terrabomb Matter Drive Phase Redirector Subatomic Replicator Phase Armor Dimensional Node Initializer High-powered Transdimensional Reconstructor Transdimensional Reconstructor Integrated Mediator Core Regenerator Integrated Heat Negator Achievements -------------- None Challenges ------------ None Game ------ Seed CoilAntimatterDeconstructor Manual? 0 Play Time 03:05:41 Cumulative 963.9 hours Start 2021.09.28 @ 22:33:56 End 2021.09.30 @ 05:17:16 Sessions 5 Manual Loads 0 Difficulty Rogue Special Mode None Game No. 659 Rogue 655 Adventurer 4 Explorer 0 Win Type - Total 102 Types 78/9/6/4/2/0/0/2/1 Lore% 95 Gallery% 97 Achievement% 96 Wizard Run 0 Options --------- ASCII 0 Keyboard 1 Movement Vi Keybinds 0 Fullscreen 0 Font 16/Terminus Map View 76x50 Tactical HUD 1 Map Filters NONE Filters NONE Steam 1 RUN: a755c3da-ebdc-4a12-aef0-816d22051e54